bitfinex/quotes_SOLUSD_20240824
["timestamp","ask_amount","ask_price","bid_price","bid_amount"]
[1724526538559,6.5682,162.06,162.01,11.77132047]
[1724526538765,6.5682,162.06,162.02,3.07690302]
[1724526538962,6.5682,162.06,162.03,3.07690302]
[1724526539292,6.5682,162.06,162.01,11.77132047]
[1724526539505,6.5682,162.06,162.02,3.07940616]
[1724526539799,16.5378,162.09,162.03,14.85147528]
[1724526540097,16.5378,162.09,162.05,11.77132047]
[1724526544991,6.5682,162.1,162.05,11.77132047]
[1724526547376,7.80494672,162.1,162.05,11.77132047]
[1724526547585,6.5682,162.1,162.05,11.77132047]
[1724526548784,6.5682,162.1,162.03,11.77132047]
[1724526549685,7.80494672,162.1,162.03,11.77132047]
[1724526549997,6.5682,162.1,162.0,47.08528188]
[1724526550195,6.5682,162.1,162.04,11.77132047]
[1724526553991,1.23674672,162.09,162.04,11.77132047]
[1724526554499,6.5682,162.1,162.04,11.77132047]
[1724526555368,7.80494672,162.1,162.04,11.77132047]
[1724526558310,6.5682,162.1,162.04,11.77132047]
[1724526566812,12.7374,162.1,162.01,20.0]
[1724526566979,12.7374,162.1,162.03,11.77132047]
[1724526567307,6.1708,162.06,161.99,6.33541594]
[1724526567516,1.23674672,162.05,161.96,11.77132047]
[1724526567691,16.95834672,162.04,161.97,3.01706384]
[1724526567882,6.3508,162.03,161.98,3.01706384]
[1724526568091,6.3508,162.03,161.96,11.77132047]
[1724526568488,6.3508,162.03,161.97,3.01674496]
[1724526568691,6.3508,162.03,161.96,11.77132047]
[1724526569520,6.3508,162.03,161.97,20.0]
[1724526569692,6.3508,162.03,161.96,11.77132047]
[1724526569888,6.3508,162.03,161.97,20.0]
[1724526572913,7.58754672,162.03,161.97,20.0]
[1724526573116,7.58754672,162.03,161.94,6.33828896]
[1724526573419,7.58754672,162.03,161.95,31.77132047]
[1724526574424,7.58754672,162.03,161.96,1.5452714]
[1724526574921,7.58754672,162.03,161.97,1.5452714]
[1724526575106,7.58754672,162.03,161.98,1.5452714]
[1724526575311,7.58754672,162.03,161.99,1.5452714]
[1724526575509,6.3508,162.03,161.95,31.77132047]
[1724526575690,6.3508,162.03,161.96,1.54534653]
[1724526575887,6.3508,162.03,161.97,1.54534653]
[1724526576105,6.3508,162.03,161.98,1.54534653]
[1724526576294,6.3508,162.03,161.99,1.54534653]
[1724526576507,6.3508,162.03,162.0,1.54534653]
[1724526576693,6.3508,162.03,161.97,11.77132047]
[1724526576898,6.3508,162.03,161.98,1.54512874]
[1724526577121,6.3508,162.03,161.99,1.54512874]
[1724526577305,6.3508,162.03,162.0,1.54512874]
[1724526577514,6.3508,162.03,161.97,11.77132047]
[1724526577715,6.3508,162.03,161.98,1.54526245]
[1724526578011,6.3508,162.03,161.99,1.54526245]
[1724526578219,6.3508,162.03,161.97,11.77132047]
[1724526578417,6.3508,162.03,161.98,1.54526245]
[1724526578604,6.3508,162.03,161.99,1.54526245]
[1724526578804,6.3508,162.03,161.97,11.77132047]
[1724526579003,6.3508,162.03,161.98,1.5452538]
[1724526579204,6.3508,162.03,161.99,1.5452538]
[1724526579407,6.3508,162.03,161.97,11.77132047]
[1724526579589,6.3508,162.03,161.98,1.5452538]
[1724526579795,6.3508,162.03,161.99,1.5452538]
[1724526579993,6.3508,162.03,161.97,11.77132047]
[1724526580301,6.3508,162.03,161.98,1.54525947]
[1724526580608,6.3508,162.03,161.99,1.54525947]
[1724526580805,1.3508,162.03,161.97,11.77132047]
[1724526581132,1.3508,162.03,161.98,1.54526206]
[1724526581297,1.3508,162.03,161.99,1.54526206]
[1724526581497,1.3508,162.03,161.97,11.77132047]
[1724526581716,1.3508,162.03,161.98,1.54526198]
[1724526581914,1.3508,162.03,161.99,1.54526198]
[1724526582125,1.3508,162.03,161.97,11.77132047]
[1724526582317,1.3508,162.03,161.98,1.5452623]
[1724526582500,1.3508,162.03,161.99,1.5452623]
[1724526582699,1.3508,162.03,161.97,11.77132047]
[1724526582903,1.3508,162.03,161.98,1.54526198]
[1724526583105,1.3508,162.03,161.99,1.54526198]
[1724526583311,1.3508,162.03,161.97,11.77132047]
[1724526583603,1.3508,162.03,161.98,1.5452623]
[1724526583797,1.3508,162.03,161.97,11.77132047]
[1724526583997,1.3508,162.03,161.98,1.54526952]
[1724526584193,1.3508,162.03,161.97,11.77132047]
[1724526584496,1.3508,162.03,161.98,1.54526948]
[1724526584720,1.3508,162.03,161.97,11.77132047]
[1724526584913,1.3508,162.03,161.98,1.54526125]
[1724526585121,1.3508,162.03,161.97,11.77132047]
[1724526585293,1.3508,162.03,161.98,1.54526116]
[1724526585496,1.3508,162.03,161.97,11.77132047]
[1724526585717,1.3508,162.03,161.98,1.54526245]
[1724526585918,1.3508,162.03,161.99,1.54526245]
[1724526586120,15.7216,162.04,161.97,11.77132047]
[1724526586303,15.7216,162.04,161.98,1.5451863]
[1724526586505,15.7216,162.04,161.99,1.5451863]
[1724526586703,15.7216,162.04,161.97,11.77132047]
[1724526586921,15.7216,162.04,161.98,1.54518712]
[1724526587125,15.7216,162.04,161.99,1.54518712]
[1724526587297,15.7216,162.04,161.97,11.77132047]
[1724526587499,15.7216,162.04,161.98,1.54518694]
[1724526588207,15.7216,162.04,161.99,1.54518694]
[1724526588496,15.7216,162.04,161.97,11.77132047]
[1724526588703,15.7216,162.04,161.98,1.5451956]
[1724526588902,15.7216,162.04,161.99,1.5451956]
[1724526589102,15.7216,162.04,161.97,11.77132047]
[1724526589326,15.7216,162.04,161.98,1.54518727]
[1724526589502,15.7216,162.04,161.99,1.54518727]
[1724526589707,15.7216,162.04,161.97,11.77132047]
[1724526589914,15.7216,162.04,161.98,1.5451868]
[1724526590114,15.7216,162.04,161.99,1.5451868]
[1724526590297,15.7216,162.04,161.97,11.77132047]
[1724526590716,15.7216,162.04,161.98,1.54518719]
[1724526590910,15.7216,162.04,161.99,1.54518719]
[1724526591120,15.7216,162.04,161.97,11.77132047]
[1724526591509,15.7216,162.04,161.99,11.77132047]
[1724526591824,6.1765,162.07,161.99,11.77132047]
[1724526592518,15.0273,162.06,161.95,20.0]
[1724526592706,16.26404672,162.06,161.98,11.77132047]
[1724526593224,15.0273,162.06,161.98,11.77132047]
[1724526597322,15.0273,162.06,161.96,45.0]
[1724526597634,15.0273,162.06,161.99,11.77132047]
[1724526598134,26.79862047,162.06,161.97,20.0]
[1724526598305,6.1716,162.04,161.95,20.0]
[1724526598505,1.23674672,162.03,161.96,11.77132047]
[1724526598747,15.0273,162.01,161.94,6.45295707]
[1724526599027,15.0273,162.01,161.94,18.22427754]
[1724526600130,15.0273,162.01,161.95,23.07964311]
[1724526600311,15.0273,162.01,161.95,20.0]
[1724526603434,15.0273,162.01,161.95,31.77132047]
[1724526605917,15.0273,162.01,161.96,3.07759458]
[1724526606113,1.23674672,162.0,161.96,3.07759458]
[1724526606329,1.23674672,162.0,161.92,11.77132047]
[1724526606641,21.8759,161.98,161.9,6.14836138]
[1724526606836,1.23674672,161.97,161.92,3.08068096]
[1724526607141,7.41074672,161.97,161.89,11.77132047]
[1724526607317,1.23674672,161.97,161.89,11.77132047]
[1724526607512,1.23674672,161.97,161.9,3.08162431]
[1724526607712,1.23674672,161.97,161.89,11.77132047]
[1724526608030,1.23674672,161.97,161.9,3.08302737]
[1724526608230,1.23674672,161.97,161.88,6.45642816]
[1724526608441,6.1743,161.96,161.87,11.77132047]
[1724526608611,1.23674672,161.95,161.87,11.77132047]
[1724526609137,7.41144672,161.95,161.85,5.18380952]
[1724526609454,16.4456,161.94,161.86,14.85851645]
[1724526609734,16.4456,161.94,161.87,3.08719598]
[1724526610463,1.23674672,161.93,161.86,3.08719598]
[1724526610753,1.23674672,161.93,161.86,14.85851645]
[1724526610957,16.4456,161.94,161.86,11.77132047]
[1724526612428,16.4456,161.94,161.88,11.77132047]
[1724526615150,1.23674672,161.93,161.87,11.77132047]
[1724526615335,1.23674672,161.92,161.87,11.77132047]
[1724526616345,1.23674672,161.93,161.87,11.77132047]
[1724526617137,16.4456,161.94,161.87,11.77132047]
[1724526617655,17.68234672,161.94,161.87,11.77132047]
[1724526618662,6.2332,161.93,161.87,11.77132047]
[1724526619356,6.2332,161.93,161.82,22.170295]
[1724526619660,6.2332,161.93,161.86,11.77132047]
[1724526619829,6.2332,161.93,161.83,20.0]
[1724526620028,6.2332,161.93,161.86,11.77132047]
[1724526621256,6.2332,161.93,161.88,11.77132047]
[1724526622350,16.4456,161.94,161.92,11.77132047]
[1724526623043,6.2332,161.96,161.92,11.77132047]
[1724526623232,16.4456,161.98,161.95,11.77132047]
[1724526631466,1.23674672,162.04,161.87,16.3637]
[1724526631467,15.2987,162.02,161.97,11.77132047]
[1724526636063,15.2987,162.02,161.93,3.01121673]
[1724526636371,15.2987,162.02,161.97,11.77132047]
[1724526637563,15.2987,162.02,161.93,3.01121673]
[1724526637764,21.4708,162.02,161.94,11.77132047]
[1724526638068,15.2987,162.02,161.96,11.77132047]
[1724526639570,12.6765,162.04,161.98,11.77132047]
[1724526639754,6.1717,162.03,161.97,11.77132047]
[1724526641662,12.6762,162.04,161.97,11.77132047]
[1724526644040,6.5049,162.04,161.99,11.77132047]
[1724526644355,21.4695,162.06,161.99,11.77132047]
[1724526645080,15.2987,162.06,161.99,11.77132047]
[1724526646060,45.61002047,162.06,161.93,3.00775861]
[1724526646250,6.1717,162.03,161.96,11.77132047]
[1724526646973,27.40804672,162.05,161.96,11.77132047]
[1724526647158,1.23674672,162.02,161.96,11.77132047]
[1724526647695,51.1713,162.04,161.96,11.77132047]
[1724526647873,6.1713,162.04,161.96,11.77132047]
[1724526648195,1.23674672,162.03,161.96,11.77132047]
[1724526649185,6.1713,162.04,161.96,11.77132047]
[1724526651389,6.1713,162.04,161.97,1.5453293]
[1724526651580,6.1713,162.04,161.96,11.77132047]
[1724526651787,6.1713,162.04,161.97,1.54532069]
[1724526651960,6.1713,162.04,161.96,11.77132047]
[1724526652161,6.1713,162.04,161.97,1.54532917]
[1724526652487,26.171,162.05,161.98,11.77132047]
[1724526655489,6.1713,162.04,161.98,11.77132047]
[1724526655984,7.40844672,162.03,161.92,83.65128188]
[1724526656189,7.40844672,162.03,161.96,11.77132047]
[1724526656583,7.40844672,162.03,161.92,36.566]
[1724526656894,7.40844672,162.03,161.95,11.77132047]
[1724526659688,6.1721,162.02,161.92,36.566]
[1724526659883,1.23674672,162.01,161.93,11.77132047]
[1724526660088,6.173,162.0,161.93,11.77132047]
[1724526660296,1.23674672,161.99,161.93,11.77132047]
[1724526660605,6.173,162.0,161.93,11.77132047]
[1724526660890,36.31402047,162.03,161.95,11.77132047]
[1724526660891,6.0027,162.03,161.95,11.77132047]
[1724526661198,6.0027,162.03,161.97,11.77132047]
[1724526662170,12.1744,162.03,161.97,11.77132047]
[1724526662697,1.23674672,162.02,161.97,11.77132047]
[1724526664296,12.1744,162.03,161.97,11.77132047]
[1724526665569,13.41114672,162.03,161.97,11.77132047]
[1724526665979,12.1744,162.03,161.97,11.77132047]
[1724526667279,6.1717,162.03,161.97,11.77132047]
[1724526667489,6.1713,162.04,161.97,11.77132047]
[1724526667797,7.40804672,162.04,161.97,11.77132047]
[1724526669906,6.1713,162.04,161.97,11.77132047]
[1724526675102,6.1713,162.04,161.98,3.07977056]
[1724526675305,7.40804672,162.04,161.97,11.77132047]
[1724526675510,6.1717,162.03,161.98,3.07976898]
[1724526675710,1.23674672,162.02,161.96,11.77132047]
[1724526675907,6.1717,162.03,161.97,3.07985598]
[1724526676106,1.23674672,162.02,161.98,3.07985598]
[1724526676319,1.23674672,162.02,161.96,11.77132047]
[1724526677010,6.1717,162.03,161.96,11.77132047]
[1724526677583,6.1717,162.03,161.93,26.15341282]
[1724526677785,6.1717,162.03,161.96,11.77132047]
[1724526679414,1.23674672,162.02,161.96,11.77132047]
[1724526681100,6.1717,162.03,161.96,11.77132047]
[1724526682619,7.40884672,162.02,161.93,26.1501352]
[1724526682923,1.23674672,162.01,161.95,11.77132047]
[1724526684799,7.40914672,162.01,161.94,11.77132047]
[1724526687322,60.2582,162.0,161.9,11.77132047]
[1724526687536,6.1744,161.96,161.89,6.1530186]
[1724526687704,7.41144672,161.95,161.89,6.41433692]
[1724526687908,7.41144672,161.95,161.88,15.7915]
[1724526687909,6.1747,161.95,161.88,15.7915]
[1724526688834,6.1747,161.95,161.89,11.77132047]
[1724526689023,6.1743,161.97,161.89,11.77132047]
[1724526689221,45.0,161.96,161.89,11.77132047]
[1724526689427,6.1743,161.97,161.89,11.77132047]
[1724526689830,6.1743,161.97,161.88,15.7915]
[1724526690020,1.23674672,161.96,161.9,11.77132047]
[1724526690220,6.1743,161.97,161.9,11.77132047]
[1724526690535,1.23674672,161.96,161.9,11.77132047]
[1724526690746,1.23674672,161.95,161.9,11.77132047]
[1724526692832,1.23674672,161.95,161.87,11.77132047]
[1724526693313,1.23674672,161.95,161.85,6.4091312]
[1724526693516,1.23674672,161.95,161.87,11.77132047]
[1724526694824,15.901,161.94,161.85,6.4091312]
[1724526695021,1.23674672,161.93,161.85,6.4091312]
[1724526695215,1.23674672,161.93,161.86,11.77132047]
[1724526696142,15.901,161.94,161.86,11.77132047]
[1724526696529,1.23674672,161.93,161.86,11.77132047]
[1724526696920,1.23674672,161.92,161.85,6.4091312]
[1724526697120,1.23674672,161.92,161.85,18.18045167]
[1724526698021,1.23674672,161.91,161.85,18.18045167]
[1724526699027,1.23674672,161.93,161.85,18.18045167]
[1724526699231,1.23674672,161.92,161.85,18.18045167]
[1724526701431,1.23674672,161.92,161.85,6.4091312]
[1724526701746,1.23674672,161.92,161.86,11.77132047]
[1724526702339,22.0761,161.94,161.86,11.77132047]
[1724526706625,23.31284672,161.94,161.86,11.77132047]
[1724526708351,23.31284672,161.94,161.85,6.4091312]
[1724526708550,6.1763,161.91,161.85,6.4091312]
[1724526708753,52.41364672,161.9,161.83,11.77132047]
[1724526709129,1.23674672,161.89,161.83,11.77132047]
[1724526710149,6.1763,161.91,161.83,11.77132047]
[1724526710549,6.1755,161.93,161.85,11.77132047]
[1724526710849,6.1755,161.93,161.87,11.77132047]
[1724526715563,22.0761,161.94,161.87,11.77132047]
[1724526717434,35.1777,161.98,161.91,11.77132047]
[1724526717639,35.1777,161.98,161.92,11.77132047]
[1724526717640,6.174,161.97,161.92,11.77132047]
[1724526719962,6.174,161.97,161.9,13.31723352]
[1724526720260,6.174,161.97,161.9,11.77132047]
[1724526721333,6.174,161.97,161.91,1.54590519]
[1724526721531,6.174,161.97,161.9,11.77132047]
[1724526721956,1.23674672,161.96,161.9,11.77132047]
[1724526722347,6.174,161.97,161.9,11.77132047]
[1724526722882,22.7813,161.98,161.9,11.77132047]
[1724526723380,22.7813,161.98,161.91,1.54597157]
[1724526723678,22.7813,161.98,161.9,11.77132047]
[1724526723980,22.7813,161.98,161.92,11.77132047]
[1724526725884,16.6077,161.98,161.92,11.77132047]
[1724526726097,16.6077,161.98,161.87,5.17995032]
[1724526726098,6.3593,161.99,161.94,11.77132047]
[1724526726886,36.41444672,162.02,161.94,11.77132047]
[1724526726887,6.1725,162.01,161.94,11.77132047]
[1724526727088,1.23674672,162.01,161.94,11.77132047]
[1724526727379,1.23674672,162.01,161.95,1.54570341]
[1724526727557,1.23674672,162.01,161.94,11.77132047]
[1724526727757,1.23674672,162.01,161.95,1.54567]
[1724526727977,1.23674672,162.01,161.96,1.54567]
[1724526728158,1.23674672,162.01,161.94,11.77132047]
[1724526728357,22.7798,162.02,161.95,1.54560333]
[1724526729768,6.1709,162.05,161.98,1.54538993]
[1724526729991,6.1709,162.05,161.96,11.77132047]
[1724526730188,6.1709,162.05,161.97,1.54540496]
[1724526730383,1.23674672,162.04,161.96,11.77132047]
[1724526730686,1.23674672,162.04,161.97,1.54544398]
[1724526730859,1.23674672,162.04,161.96,11.77132047]
[1724526731060,1.23674672,162.04,161.98,11.77132047]
[1724526731882,6.1709,162.05,161.98,11.77132047]
[1724526734190,7.40804672,162.04,161.96,27.77152047]
[1724526734359,7.40804672,162.04,161.97,1.54530325]
[1724526734559,6.1717,162.03,161.98,1.54530325]
[1724526734761,6.1717,162.03,161.96,27.77152047]
[1724526734984,6.1717,162.03,161.97,1.54529557]
[1724526735163,1.23674672,162.02,161.96,27.77152047]
[1724526735364,1.23674672,162.02,161.97,1.54530479]
[1724526735683,1.23674672,162.02,161.96,27.77152047]
[1724526735879,1.23674672,162.02,161.97,1.5453039]
[1724526736064,1.23674672,162.02,161.96,27.77152047]
[1724526736275,1.23674672,162.02,161.97,1.5452876]
[1724526736483,1.23674672,162.02,161.96,27.77152047]
[1724526736669,1.23674672,162.02,161.97,1.54528745]
[1724526736981,1.23674672,162.02,161.96,27.77152047]
[1724526737190,1.23674672,162.02,161.97,1.54530942]
[1724526737384,6.1713,162.04,161.96,27.77152047]
[1724526737694,6.1713,162.04,161.97,1.54530909]
[1724526737897,6.1713,162.04,161.96,27.77152047]
[1724526738688,51.1719,162.03,161.96,16.0002]
[1724526738899,1.23674672,162.02,161.92,16.0002]
[1724526739078,1.23674672,162.01,161.93,1.54533693]
[1724526739276,6.1731,162.0,161.92,27.77152047]
[1724526739497,1.23674672,161.99,161.93,1.54559518]
[1724526739797,1.23674672,161.98,161.92,27.77152047]
[1724526740096,1.23674672,161.98,161.93,1.54560985]
[1724526740407,1.23674672,161.98,161.92,27.77152047]
[1724526740696,1.23674672,161.98,161.93,1.54565731]
[1724526740904,1.23674672,161.98,161.92,27.77152047]
[1724526741074,1.23674672,161.98,161.93,1.54564881]
[1724526741427,6.1731,162.0,161.92,27.77152047]
[1724526741601,6.1731,162.0,161.93,1.54564865]
[1724526741794,6.1731,162.0,161.92,27.77152047]
[1724526741990,6.1731,162.0,161.93,1.54564865]
[1724526742303,6.1731,162.0,161.92,27.77152047]
[1724526742472,6.1731,162.0,161.93,1.54565698]
[1724526742672,6.1731,162.0,161.92,27.77152047]
[1724526742888,6.1731,162.0,161.93,1.54565682]
[1724526743088,6.1731,162.0,161.92,27.77152047]
[1724526743392,6.1731,162.0,161.93,1.54565682]
[1724526743604,1.23674672,161.99,161.92,27.77152047]
[1724526743804,1.23674672,161.98,161.93,1.54564849]
[1724526743981,1.23674672,161.98,161.92,27.77152047]
[1724526744299,1.23674672,161.98,161.93,1.54564881]
[1724526744503,1.23674672,161.98,161.92,27.77152047]
[1724526744694,1.23674672,161.98,161.93,1.54565731]
[1724526744869,1.23674672,161.97,161.92,27.77152047]
[1724526745068,1.23674672,161.97,161.93,1.54565714]
[1724526745279,6.1731,162.0,161.92,27.77152047]
[1724526745475,7.40984672,162.0,161.93,1.54565731]
[1724526745696,7.40984672,162.0,161.92,27.77152047]
[1724526745906,7.40984672,162.0,161.93,1.54564865]
[1724526746083,6.1731,162.0,161.92,27.77152047]
[1724526746287,6.1731,162.0,161.93,1.54564865]
[1724526746501,6.1731,162.0,161.92,27.77152047]
[1724526746983,6.1731,162.0,161.93,1.54565698]
[1724526747200,6.1731,162.0,161.92,27.77152047]
[1724526747406,6.1731,162.0,161.93,1.54565698]
[1724526747594,6.1731,162.0,161.92,27.77152047]
[1724526747795,6.1731,162.0,161.93,1.54565698]
[1724526748095,6.1731,162.0,161.92,27.77152047]
[1724526748289,6.1731,162.0,161.93,1.54565698]
[1724526748586,6.1731,162.0,161.92,27.77152047]
[1724526748787,6.1731,162.0,161.93,1.54565698]
[1724526749006,6.1731,162.0,161.92,27.77152047]
[1724526749184,6.1731,162.0,161.93,1.54566531]
[1724526749383,6.1731,162.0,161.92,27.77152047]
[1724526749890,6.1731,162.0,161.93,1.54566531]
[1724526750082,6.1731,162.0,161.92,27.77152047]
[1724526750284,6.1731,162.0,161.93,1.54565705]
[1724526750585,6.1731,162.0,161.92,27.77152047]
[1724526750885,6.1731,162.0,161.93,1.54565705]
[1724526751085,6.1731,162.0,161.92,27.77152047]
[1724526751420,6.1731,162.0,161.93,1.54565689]
[1724526751700,6.1731,162.0,161.92,27.77152047]
[1724526751903,6.1731,162.0,161.93,1.54565705]
[1724526752100,6.1731,162.0,161.92,27.77152047]
[1724526752313,6.1731,162.0,161.93,1.54564856]
[1724526752516,6.1731,162.0,161.92,27.77152047]
[1724526752717,6.1731,162.0,161.93,1.54564856]
[1724526752885,6.1731,162.0,161.92,27.77152047]
[1724526753084,6.1731,162.0,161.93,1.54565705]
[1724526753287,1.23674672,161.99,161.92,27.77152047]
[1724526753716,1.23674672,161.99,161.93,1.54565721]
[1724526753887,1.23674672,161.99,161.92,27.77152047]
[1724526754217,1.23674672,161.99,161.93,1.54565721]
[1724526754515,6.1731,162.0,161.94,1.54565721]
[1724526754723,6.1731,162.0,161.92,27.77152047]
[1724526754889,6.1731,162.0,161.93,1.54565811]
[1724526755215,7.40984672,162.0,161.94,1.54565811]
[1724526755419,7.40984672,162.0,161.92,27.77152047]
[1724526755714,7.40984672,162.0,161.93,1.54562191]
[1724526756016,7.40984672,162.0,161.94,1.54562191]
[1724526756323,1.23674672,162.0,161.95,1.54562191]
[1724526756612,44.50472047,162.02,161.92,27.77152047]
[1724526756613,1.23674672,161.99,161.92,27.77152047]
[1724526756816,1.23674672,161.99,161.93,1.54562822]
[1724526757019,1.23674672,161.99,161.92,27.77152047]
[1724526757217,1.23674672,161.99,161.93,1.54562887]
[1724526757518,1.23674672,162.0,161.94,1.54562887]
[1724526757807,1.23674672,162.0,161.95,1.54562887]
[1724526758015,1.23674672,162.0,161.92,27.77152047]
[1724526758311,1.23674672,162.0,161.93,1.54562822]
[1724526758608,1.23674672,162.0,161.94,1.54562822]
[1724526758790,1.23674672,162.0,161.95,1.54562822]
[1724526758991,1.23674672,162.0,161.92,27.77152047]
[1724526759206,1.23674672,162.0,161.93,1.54564537]
[1724526759391,1.23674672,162.0,161.94,1.54564537]
[1724526759594,1.23674672,162.0,161.95,1.54564537]
[1724526759782,1.23674672,162.0,161.92,27.77152047]
[1724526759986,1.23674672,162.0,161.93,1.54563655]
[1724526760243,1.23674672,162.0,161.94,1.54563655]
[1724526760545,52.40954672,162.0,161.95,1.54563655]
[1724526760718,52.40954672,162.0,161.96,1.54563655]
[1724526760921,52.40954672,162.0,161.93,3.08595984]
[1724526761104,52.40954672,162.0,161.94,1.54563639]
[1724526761305,52.40954672,162.0,161.95,1.54563639]
[1724526761601,52.40954672,162.0,161.96,1.54563639]
[1724526761804,52.40954672,162.0,161.93,3.08595491]
[1724526762037,52.40954672,162.0,161.94,1.54562855]
[1724526762235,52.40954672,162.0,161.95,1.54562855]
[1724526762533,52.40954672,162.0,161.96,1.54562855]
[1724526762741,52.40954672,162.0,161.92,27.77152047]
[1724526762919,52.40954672,162.0,161.93,4.63094262]
[1724526763119,52.40954672,162.0,161.94,1.54563639]
[1724526763317,52.40954672,162.0,161.95,1.54563639]
[1724526763614,52.40954672,162.0,161.96,1.54563639]
[1724526763820,52.40954672,162.0,161.92,27.77152047]
[1724526764037,52.40954672,162.0,161.97,1.54563639]
[1724526764418,52.40954672,162.0,161.92,27.77152047]
[1724526764736,52.40954672,162.0,161.93,4.6313695]
[1724526764903,52.40954672,162.0,161.94,4.6313695]
[1724526765104,52.40954672,162.0,161.95,1.54563599]
[1724526765425,52.40954672,162.0,161.96,1.54563599]
[1724526765625,52.40954672,162.0,161.97,1.54563599]
[1724526765828,52.40954672,162.0,161.93,5.18258951]
[1724526766128,52.40954672,162.0,161.94,1.54563688]
[1724526766305,52.40954672,162.0,161.95,1.54563688]
[1724526766512,52.40954672,162.0,161.96,1.54563688]
[1724526766815,52.40954672,162.0,161.97,1.54563543]
[1724526767128,52.40954672,162.0,161.93,5.18832605]
[1724526767326,52.40954672,162.0,161.94,1.54563915]
[1724526767529,52.40954672,162.0,161.95,1.54563915]
[1724526767830,52.40954672,162.0,161.96,1.54563915]
[1724526768034,52.40954672,162.0,161.97,1.54563915]
[1724526768231,52.40954672,162.0,161.92,27.77152047]
[1724526768437,52.40954672,162.0,161.93,6.7289105]
[1724526768608,52.40954672,162.0,161.94,1.54564466]
[1724526768805,52.40954672,162.0,161.92,27.77152047]
[1724526768806,52.40954672,162.0,161.95,1.54564466]
[1724526769016,51.1728,162.0,161.96,1.54564466]
[1724526769320,51.1728,162.0,161.97,1.54564466]
[1724526769507,51.1728,162.0,161.92,27.77152047]
[1724526769712,51.1728,162.0,161.93,6.72845883]
[1724526770015,15.5427,162.01,161.94,13.31696577]
[1724526770328,15.5427,162.01,161.95,1.5456453]
[1724526770525,15.5427,162.01,161.96,1.5456453]
[1724526770711,21.7152,162.01,161.97,1.5456453]
[1724526770910,21.7152,162.01,161.94,11.77132047]
[1724526771121,21.7152,162.01,161.95,1.54564498]
[1724526771331,21.7152,162.01,161.96,1.54564498]
[1724526771536,21.7152,162.01,161.94,11.77132047]
[1724526771537,1.23674672,162.0,161.97,1.54564498]
[1724526771729,1.23674672,162.0,161.94,11.77132047]
[1724526771730,1.23674672,162.0,161.98,1.54564498]
[1724526771929,1.23674672,162.0,161.94,11.77132047]
[1724526772128,1.23674672,162.0,161.95,1.5456445]
[1724526772329,1.23674672,162.0,161.96,1.5456445]
[1724526772629,1.23674672,162.0,161.97,1.5456445]
[1724526772830,1.23674672,162.0,161.98,1.5456445]
[1724526773015,1.23674672,162.0,161.94,11.77132047]
[1724526773211,1.23674672,162.0,161.95,1.5456445]
[1724526773426,1.23674672,162.0,161.96,1.5456445]
[1724526773711,21.7152,162.01,161.97,1.54565315]
[1724526773915,15.5427,162.01,161.98,1.54565315]
[1724526774122,15.5427,162.01,161.94,11.77132047]
[1724526774325,15.5427,162.01,161.95,1.54563497]
[1724526774516,15.5427,162.01,161.96,1.54563497]
[1724526774734,15.5427,162.01,161.97,1.54563497]
[1724526775035,16.77944672,162.01,161.98,1.54563497]
[1724526775229,16.77944672,162.01,161.94,11.77132047]
[1724526775419,16.77944672,162.01,161.95,1.54564498]
[1724526775617,16.77944672,162.01,161.96,1.54564498]
[1724526775820,16.77944672,162.01,161.97,1.54564498]
[1724526776137,16.77944672,162.01,161.98,1.54564498]
[1724526776340,16.77944672,162.01,161.94,11.77132047]
[1724526776641,15.5427,162.01,161.95,1.54564433]
[1724526776845,1.23674672,162.0,161.95,1.54564433]
[1724526777017,1.23674672,162.0,161.96,1.54564433]
[1724526777221,1.23674672,162.0,161.97,1.54564433]
[1724526777546,1.23674672,162.0,161.98,1.54564433]
[1724526777735,1.23674672,162.0,161.94,11.77132047]
[1724526777916,1.23674672,162.0,161.95,1.54565347]
[1724526778244,15.5427,162.01,161.96,1.54565347]
[1724526778425,15.5427,162.01,161.97,1.54565347]
[1724526778625,15.5427,162.01,161.98,1.54565347]
[1724526778964,15.5427,162.01,161.94,11.77132047]
[1724526779241,15.5427,162.01,161.95,1.54563696]
[1724526779436,15.5427,162.01,161.96,1.54563696]
[1724526779739,15.5427,162.01,161.97,1.54563696]
[1724526779939,15.5427,162.01,161.98,1.54563696]
[1724526780144,15.5427,162.01,161.99,1.54562758]
[1724526780318,15.5427,162.01,161.94,11.77132047]
[1724526780521,15.5427,162.01,161.95,1.54562823]
[1724526780723,15.5427,162.01,161.96,1.54562823]
[1724526780927,15.5427,162.01,161.97,1.54562823]
[1724526781137,15.5427,162.01,161.98,1.54562823]